Cogmind - Beta 13 @@@ ROGUE MODE // 2024.06.15 @ 20:52:21 Player: Gabe+Kate4EVR Result: Destroyed by Y-54 Guardian with Flak Gun Performance ------------- Evolutions (3) 1500 Regions Visited (5) 1000 Robots Destroyed (58) 290 Value Destroyed (1149) 1149 Prototype IDs (4) 80 Alien Tech Used (0) 0 Bonus (224) 224 TOTAL SCORE: 4243 Bonus ------- Pacifist 200 High Alert Combat Kills 24 Cogmind --------- Core Integrity 0/700 Matter 280/300 Energy 99/100 System Corruption 3% Temperature Cool (0) Movement Core (50) Location -7/Factory Parts ------- > --- POWER (1) -------- (None) > --- PROPULSION (5) --- (None) > --- UTILITY (5) ------ Improved Signal Interpreter Improved Signal Interpreter Improved Salvage Targeting Computer > --- WEAPON (2) ------- (None) > --- INVENTORY (5) ---- Transmission Jammer Advanced ECM Suite Improved Datajack Greatsword Peak State ------------ > --- POWER ------------ Hybrid Deuterium Engine > --- PROPULSION ------- Flight Unit Flight Unit Flight Unit Flight Unit Cesium-ion Thruster > --- UTILITY ---------- Medium Storage Unit Visual Processing Unit Improved Signal Interpreter Improved Salvage Targeting Computer System Shield > --- WEAPON ----------- Power Maul Power Maul > --- INVENTORY -------- Hybrid Deuterium Engine Hybrid Deuterium Engine Improved Signal Interpreter Transmission Jammer Advanced ECM Suite Reaction Control System Shock Bomb Launcher Rocket Launcher Improved Datajack Power Maul [Rating: 35] Favorites ----------- Power Ion Engine Engine Ion Engine Power Core Light Nuclear Core Propulsion Flight Unit Leg Aluminum Leg Wheel Compact Wheel Hover Unit Hover Unit Flight Unit Flight Unit Utility Visual Processing Unit Device Heat Sink Storage Large Storage Unit Processor Visual Processing Unit Hackware Hacking Suite Weapon Small Laser Energy Gun Small Laser Energy Cannon Advanced Beam Cannon Ballistic Gun Heavy Assault Rifle Launcher Shock Bomb Launcher Impact Weapon Power Maul Slashing Weapon Katana Special Melee Weapon Improved Datajack Build | -11 -10 -9 -9 -8 -7 ------- Run | Yrd Mat Mat Min Mat Fac Slots Evolved 6 | . . 2 . 2 2 Power . | . . . . . . Propulsion 3 | . . 1 . 2 . Utility 3 | . . 1 . . 2 Weapon . | . . . . . . Parts Attached 70 | 6 1 34 5 6 18 Power 9 | 1 . 2 2 1 3 Engine 8 | 1 . 2 1 1 3 Core 1 | . . . 1 . . Reactor . | . . . . . . Propulsion 17 | 2 . 8 3 2 2 Treads . | . . . . . . Leg 2 | 2 . . . . . Wheel 5 | . . 3 . . 2 Hover 2 | . . 2 . . . Flight 8 | . . 3 3 2 . Utility 19 | 1 1 12 . 1 4 Device 7 | . . 7 . . . Storage 4 | 1 1 2 . . . Processor 6 | . . 2 . 1 3 Hackware 2 | . . 1 . . 1 Protection . | . . . . . . Artifact . | . . . . . . Weapon 25 | 2 . 12 . 2 9 Energy Gun 7 | 1 . 4 . 1 1 Energy Cannon 1 | . . 1 . . . Ballistic Gun 2 | 1 . 1 . . . Ballistic Cannon . | . . . . . . Launcher 6 | . . 4 . . 2 Special Weapon . | . . . . . . Impact Weapon 5 | . . . . . 5 Slashing Weapon 3 | . . 1 . 1 1 Piercing Weapon . | . . . . . . Special Melee Weapon 1 | . . 1 . . . Unidentified Prototypes 2 | . . 2 . . . Corrupted Parts 3 | . . 2 . . 1 System Corruption 4 | . . 3 . . 1 Parts Lost 18 | . . 1 3 1 13 Power 1 | . . . . . 1 Propulsion 10 | . . . 3 . 7 Utility 4 | . . 1 . 1 2 Weapon 3 | . . . . . 3 Highest Loss Streak 13 | . . 1 2 1 13 To Critical Strikes . | . . . . . . Average Slot Usage (%) 74 | . 85 72 85 82 62 Engine 7 | . 14 8 2 9 3 Leg 7 | . 28 10 . . . Flight 16 | . . 9 30 45 17 Device 3 | . . 7 . . . Storage 10 | . 14 10 11 9 6 Processor 7 | . . 3 11 10 19 Hackware 4 | . . 3 11 7 3 Energy Gun 6 | . 14 9 . 1 1 Ballistic Gun 2 | . 14 3 . . . Launcher 1 | . . 3 . . . Impact Weapon 1 | . . . . . 7 Slashing Weapon 1 | . . . 11 . . Naked Turns . | . . . . . . Heaviest Build 38 | 12 27 38 22 20 23 Greatest Support 26 | 20 20 26 15 21 21 Greatest Overweight (x) 6 | . 1 5 3 . 6 Average Overweight (x) . | . . . 1 . . Largest Inventory Capacity 15 | 8 15 15 10 10 10 Average Capacity 11 | 6 8 13 10 10 9 Most Carried 15 | 2 4 15 10 10 10 Average Carried 8 | 1 2 9 9 9 8 Final Capacity 15 | 8 15 10 10 10 5 Final Carried 10 | 2 4 10 10 10 5 Class Distribution -------------------- 52% | Mutant 25% | Scavenger-Sprinter 13% | Scavenger-Mutant 8% | Sprinter Dominant Class ---------------- Mutant | -10/Materials Mutant | -9/Materials Scavenger-Mutant | -9/Mines Scavenger-Sprinter | -8/Materials Mutant | -7/Factory Resources | -11 -10 -9 -9 -8 -7 ----------- Run | Yrd Mat Mat Min Mat Fac Matter Collected 1065 | 260 . 511 66 55 173 Remotely 78 | . . 78 . . . Salvage Created 1784 | . . 950 337 32 465 Parts 109 | . . 71 16 3 19 Haulers Intercepted 4 | . . 3 . . 1 Recyclers Shooed 1 | . . 1 . . . Parts Field Recycled . | . . . . . . Retrieved Matter . | . . . . . . Parts Self-Destructed . | . . . . . . Prevented . | . . . . . . Kills | -11 -10 -9 -9 -8 -7 ------- Run | Yrd Mat Mat Min Mat Fac Combat Hostiles Destroyed 27 | . . 9 6 . 12 Melee 8 | . . . 6 . 2 Guns 2 | . . 2 . . . AOE 15 | . . 7 . . 8 Classes Destroyed 11 | . . 8 1 . 2 Worker 7 | . . 2 1 . 4 Builder 4 | . . 1 . . 3 Tunneler 1 | . . . . . 1 Hauler 4 | . . 3 . . 1 Recycler 8 | . . 4 2 . 2 Operator 2 | . . 2 . . . Watcher 5 | . . 4 . 1 . Swarmer 12 | . . . 4 . 8 Grunt 9 | . . 5 2 . 2 Sentry 5 | . . 4 . . 1 Programmer 1 | . . . . . 1 Best Kill Streak 10 | . . 7 7 1 10 Combat Bots Only 6 | . . 4 6 . 4 Max Kills in Single Turn 6 | . . 6 1 1 4 Gunslinging . | . . . . . . Exploded 4 | . . 4 . . 3 Melee 1 | . . . 1 . 1 Uniques/NPCs Destroyed . | . . . . . . Combat | -11 -10 -9 -9 -8 -7 -------- Run | Yrd Mat Mat Min Mat Fac Hostile Shots Fired 281 | . . 33 20 8 220 Missed 104 | . . 13 5 4 82 Damage Taken 2020 | . . 260 225 57 1478 Core 932 | . . 115 101 15 701 Absorbed by Shields . | . . . . . . Core Remaining (%) 85 | 100 100 . 46 97 . Volleys Fired 49 | . . 35 . 6 8 Largest 2 | . . 2 . 1 1 Hottest 105 | . . 105 . 63 33 Shots Fired 81 | . . 67 . 6 8 Gun 60 | . . 54 . 6 . Cannon . | . . . . . . Launcher 21 | . . 13 . . 8 Special . | . . . . . . Kinetic 23 | . . 23 . . . Thermal 37 | . . 31 . 6 . Explosive 13 | . . 5 . . 8 Electromagnetic 8 | . . 8 . . . Robot Hit Streak 8 | . . 8 . 4 4 Robot Miss Streak 3 | . . 3 . 2 2 Penetration Max . | . . . . . . Secondary Targets . | . . . . . . Shots Hit Robots 77 | . . 38 12 4 23 Core Hits 69 | . . 38 5 2 24 Critical Kills 1 | . . . . . 1 Critical Parts Destroyed 5 | . . . . . 5 Critical Strikes 9 | . . 2 . 1 6 Burn 3 | . . 2 . 1 . Smash 6 | . . . . . 6 Melee Attacks 44 | . . 5 17 2 20 Impact 20 | . . . . . 20 Slashing 23 | . . 4 17 2 . Piercing . | . . . . . . Sneak Attacks 10 | . . 1 4 . 5 Combat Hostiles 1 | . . . 1 . . Follow-up Attacks 2 | . . . . . 2 Damage Inflicted 4499 | . . 1437 529 68 2465 Guns 508 | . . 440 . 68 . Cannons . | . . . . . . Explosions 2271 | . . 928 . . 1343 Melee 1706 | . . 69 529 . 1108 Ramming 14 | . . . . . 14 Kinetic 137 | . . 137 . . . Thermal 547 | . . 479 . 68 . Explosive 1674 | . . 331 . . 1343 Electromagnetic 421 | . . 421 . . . Impact 1108 | . . . . . 1108 Slashing 598 | . . 69 529 . . Piercing . | . . . . . . Highest Corruption 3 | . . 3 3 . 3 Average Corruption 2 | . . 2 3 . 2 Corruption Purged . | . . . . . . Corruption Blocked . | . . . . . . Effects 27 | . . 24 2 . 1 Message Errors 8 | . . 6 1 . 1 Matter Fused 4 | . . 4 . . . Heat Flow Errors 5 | . . 5 . . . Energy Discharges 4 | . . 3 1 . . Data Loss (minor) 2 | . . 2 . . . Misfires 2 | . . 2 . . . Weapon Failures 2 | . . 2 . . . Overload Shots . | . . . . . . Overflow Damage 739 | . . 18 94 . 627 Projectiles 4 | . . . . . 4 Explosions 60 | . . 18 . . 42 Melee 675 | . . . 94 . 581 Knockbacks 4 | . . . . . 4 Impact 3 | . . . . . 3 Kinetic . | . . . . . . Secondary 1 | . . . . . 1 Self-Inflicted Damage 85 | . . . . . 85 Shots 2 | . . . . . 2 Rammed 4 | . . . . . 4 Targets Rammed 4 | . . . . . 4 Kicked . | . . . . . . Crushed . | . . . . . . Highest Temperature 284 | . . 284 . 75 12 Average Temperature 55 | . . 62 . 39 7 Received Heat Transfer 351 | . . 72 27 18 234 Effects 1 | . . 1 . . . Interference 1 | . . 1 . . . Siege Activations . | . . . . . . Robots Corrupted . | . . . . . . Combat Hostiles . | . . . . . . Parts Fried 9 | . . 3 . . 6 Impact Corruptions 20 | . . . . . 20 Robots Melted . | . . . . . . Combat Hostiles . | . . . . . . Parts Melted 3 | . . 2 . 1 . Heat Transferred 1401 | . . 1179 . 222 . Parts Sabotaged . | . . . . . . Parts Stolen . | . . . . . . Parts Stripped . | . . . . . . Power Chain Reactions 4 | . . 4 . . . Alert | -11 -10 -9 -9 -8 -7 ------- Run | Yrd Mat Mat Min Mat Fac Peak Influence 450 | . 3 236 216 217 450 Initial 98 | . . . 91 83 98 Average 114 | . 2 90 198 98 234 Maximum Alert Level 2 | . . 1 1 1 2 Low Security (%) 73 | 100 100 79 20 95 43 Level 1 23 | . . 20 79 4 37 Level 2 3 | . . . . . 19 Level 3 . | . . . . . . Level 4 . | . . . . . . Level 5 . | . . . . . . High Security . | . . . . . . Max Security . | . . . . . . Squads Dispatched 3 | . . 1 . . 2 Investigation . | . . . . . . Extermination 1 | . . . . . 1 Reinforcement 2 | . . 1 . . 1 Assault . | . . . . . . Garrison . | . . . . . . Intercept . | . . . . . . Searches Triggered . | . . . . . . Construction Impeded 1 | . . . . . 1 Haulers Reinforced . | . . . . . . Active Scanning Responses . | . . . . . . Cargo Convoy Interrupts . | . . . . . . Stealth | -11 -10 -9 -9 -8 -7 --------- Run | Yrd Mat Mat Min Mat Fac Distress Signals 2 | . . 2 . . . Communications Jammed . | . . . . . . Distress Signals . | . . . . . . Times Spotted 55 | . . 27 6 6 16 Peak Tracking Total 7 | . . 7 4 6 5 Tactical Retreats 4 | . . 1 . 2 1 Traps | -11 -10 -9 -9 -8 -7 ------- Run | Yrd Mat Mat Min Mat Fac Traps Triggered 2 | . . . 2 . . Indirectly . | . . . . . . Trap Hack Attempts . | . . . . . . Triggered . | . . . . . . Disarmed . | . . . . . . Reprogrammed . | . . . . . . Reused . | . . . . . . Traps Extracted . | . . . . . . Installed . | . . . . . . Triggered . | . . . . . . Machines | -11 -10 -9 -9 -8 -7 ---------- Run | Yrd Mat Mat Min Mat Fac Machines Disabled 3 | . . 1 . 1 1 Max in Single Turn 1 | . . 1 . 1 1 Garrison Access 1 | . . . . 1 . Machines Repaired . | . . . . . . Machines Dismantled . | . . . . . . Machines Sabotaged . | . . . . . . Overloaded Fab Kills . | . . . . . . Hacking | -11 -10 -9 -9 -8 -7 --------- Run | Yrd Mat Mat Min Mat Fac Machines Accessed 18 | . 1 5 1 4 7 Terminals 9 | . 1 4 . 2 2 Fabricators 1 | . . . . . 1 Repair Stations . | . . . . . . Recycling Units 2 | . . 1 . . 1 Scanalyzers 3 | . . . . 1 2 Garrison Access 2 | . . . . 1 1 Total Hacks 50 | . 2 13 1 18 16 Successful 27 | . 2 8 1 13 3 Failed 23 | . . 5 . 5 13 Catastrophic 5 | . . 1 . . 4 Database Lockouts . | . . . . . . Manual 28 | . 2 5 . 8 13 Terminals 28 | . 2 11 . 8 7 Fabricators 2 | . . . . . 2 Repair Stations . | . . . . . . Recycling Units 4 | . . 2 . . 2 Scanalyzers 13 | . . . . 9 4 Garrison Access 2 | . . . . 1 1 Terminal Hacks 10 | . . 5 1 2 2 Prototype ID Bank 1 | . . 1 . . . Open Door 1 | . . . 1 . . Terminal Index 1 | . . . . . 1 Alert Level 3 | . . 2 . 1 . Zone Layout 4 | . . 2 . 1 1 Fabricator Hacks . | . . . . . . Repair Station Hacks . | . . . . . . Recycling Unit Hacks 1 | . . 1 . . . Retrieve Components 1 | . . 1 . . . Scanalyzer 8 | . . . . 8 . Insert Component 4 | . . . . 4 . Analyze 4 | . . . . 4 . Garrison Access Hacks 1 | . . . . 1 . Seal Access 1 | . . . . 1 . Unauthorized Hacks 6 | . 1 2 . 2 1 Terminals 6 | . 1 2 . 2 1 Track 3 | . 1 1 . 1 . Operators 3 | . . 1 . 1 1 Fabricators . | . . . . . . Repair Stations . | . . . . . . Recycling Units . | . . . . . . Scanalyzers . | . . . . . . Garrison Access . | . . . . . . Data Cores Recovered . | . . . . . . Used . | . . . . . . Hacking Detections 11 | . . 3 . 2 6 Full Trace Events . | . . . . . . Feedback Events . | . . . . . . Feedback Blocked . | . . . . . . Robot Schematics Acquired . | . . . . . . Robots Built . | . . . . . . Authchips . | . . . . . . Time . | . . . . . . Total Robot Build Rating . | . . . . . . Part Schematics Acquired 4 | . . . . 4 . Parts Built . | . . . . . . Authchips . | . . . . . . Time . | . . . . . . Total Part Build Rating . | . . . . . . Parts Repaired . | . . . . . . Time . | . . . . . . Parts Recycled . | . . . . . . Recycled Matter . | . . . . . . Retrieved Matter . | . . . . . . Retrieved Components . | . . . . . . Parts Scanalyzed 4 | . . . . 4 . Part Schematics Acquired 4 | . . . . 4 . Parts Damaged 1 | . . . . 1 . Bothacking | -11 -10 -9 -9 -8 -7 ------------ Run | Yrd Mat Mat Min Mat Fac Used RIF Installer . | . . . . . . Robots Hacked 1 | . . 1 . . . Non-combat . | . . . . . . Combat 1 | . . 1 . . . Robot Hacks Applied 1 | . . 1 . . . parse_system 1 | . . 1 . . . Relay Couplers Released . | . . . . . . Fabnet Peak Effective % . | . . . . . . Robots Rewired . | . . . . . . Allies Hacked . | . . . . . . Hacks Repelled . | . . . . . . Allies | -11 -10 -9 -9 -8 -7 -------- Run | Yrd Mat Mat Min Mat Fac Total Allies . | . . . . . . Largest Group . | . . . . . . Highest-Rated Group . | . . . . . . Highest-Rated Ally . | . . . . . . Total Orders . | . . . . . . Ally Attacks . | . . . . . . Total Damage . | . . . . . . Kills . | . . . . . . Allies Corrupted . | . . . . . . Allies Melted . | . . . . . . Intel | -11 -10 -9 -9 -8 -7 ------- Run | Yrd Mat Mat Min Mat Fac Robot Analysis Total . | . . . . . . Derelict Logs Recovered . | . . . . . . Drone Launches . | . . . . . . Drone Recoveries . | . . . . . . Exploration | -11 -10 -9 -9 -8 -7 ------------- Run | Yrd Mat Mat Min Mat Fac Turns Passed 2877 | 69 175 1580 217 392 444 Spaces Moved 2072 | 51 125 658 140 402 696 Core 105 | 3 . . . . 102 Treads . | . . . . . . Legs 456 | 48 125 283 . . . Wheels 91 | . . 67 . . 24 Hover 29 | . . 29 . . . Flight 1391 | . . 279 140 402 570 Fastest Speed 27 | 50 120 29 29 27 27 Average Speed 80 | 115 125 129 114 27 46 Slowest Speed 435 | 120 190 435 275 27 350 Overloaded Moves . | . . . . . . Propulsion Burnouts . | . . . . . . Robots Hopped 11 | . . . . 3 8 Cave-ins Triggered . | . . . . . . Exploration Rate (%) 23 | 3 21 34 20 39 21 Regions Visited 5 Branch Regions 1 Pre-discovered Areas . | . . . . . . Known Exits Taken 1 | . . . . 1 . Unknown Exits Taken 4 | 1 1 1 1 . . Scrap Searched 1 | . . . 1 . . Spaces Dug 5 | . . 3 . 2 . Terrain Destroyed 119 | . . 71 . 2 46 Melee 5 | . . 3 . 2 . Projectile . | . . . . . . AOE 114 | . . 68 . . 46 Terrain Rammed . | . . . . . . Walls Destroyed . | . . . . . . Machines Disabled . | . . . . . . Actions | -11 -10 -9 -9 -8 -7 --------- Run | Yrd Mat Mat Min Mat Fac Total 3134 | 58 144 1313 175 678 766 Wait 814 | . 17 532 3 247 15 Move 2048 | 50 124 657 139 395 683 Hop 8 | . . . . 3 5 Pick Up 39 | 2 1 19 5 8 4 Fast Attach 46 | 6 1 26 2 3 8 Attach 11 | . . 2 1 3 5 Detach 13 | . 1 7 . 3 2 Swap 13 | . . 6 2 . 5 Drop 47 | . . 24 6 8 9 Fire 49 | . . 35 . 6 8 Melee 42 | . . 5 17 2 18 Ram 4 | . . . . . 4 Kick . | . . . . . . Crush . | . . . . . . Escape Stasis . | . . . . . . Rewire . | . . . . . . Trap . | . . . . . . Miscellaneous . | . . . . . . Route ------- -11/Scrapyard -10/Materials -9/Materials -9/Mines -8/Materials -7/Factory (discovered 1 exit: [*Low]) History --------- Turn | Location | Event 4 | -11/Scrapyard | Discovered new exit (range 15) 70 | -11/Scrapyard | Entered Materials 197 | -10/Materials | Discovered new exit (range 15) 245 | -10/Materials | Entered another Materials area 245 | -9/Materials | Evolved 2 slots: Propulsion x1, Utility x1 307 | -9/Materials | Build established: Mutant 1820 | -9/Materials | Discovered new exit (range 14) 1825 | -9/Materials | Entered Mines 1970 | -9/Mines | Discovered new exit (range 8) 1999 | -9/Mines | Met a Derelict who couldn't figure out how to use a Trap Extractor 2015 | -9/Mines | Core integrity fell below 50% 2042 | -9/Mines | Entered Materials 2042 | -8/Materials | Evolved 2 slots: Propulsion x2 2342 | -8/Materials | Build established: Scavenger-Sprinter 2415 | -8/Materials | Discovered new exit (range 5) 2416 | -8/Materials | Identified exit to Factory 2434 | -8/Materials | Entered Factory 2434 | -7/Factory | Evolved 2 slots: Utility x2 2663 | -7/Factory | Core integrity fell below 50% 2710 | -7/Factory | Core integrity fell below 20% 2763 | -7/Factory | Lost 13 parts (1p7n2u3w) 2877 | -7/Factory | Discovered new exit (range 16) 2878 | -7/Factory | Destroyed by Y-54 Guardian with Flak Gun Last Messages --------------- 02814_ Lgt. Ion Engine fried. 02814_ K-01 Serf destroyed. 02822_ Sneak attack on T-07 Excavator. 02822_ T-07 Excavator suffers critical hit (Smash). 02822_ Destroyed Seismic Detector. 02822_ Destroyed Wheel. 02822_ Destroyed Imp. Terrain Scanner. 02822_ T-07 Excavator system corrupted by crushing effect. 02822_ T-07 Excavator knocked back. 02823_ T-07 Excavator system terminally corrupted. 02823_ Wheel fried. 02823_ Mining Laser fried. 02823_ Lgt. Ion Engine fried. 02835_ Slug penetrates Wall. 02835_ Dropped Med. Storage Unit. 02854_ Dropped Power Maul. 02855_ Acquired Greatsword. 02867_ Slug penetrates Nuclear Reactor. 02868_ Dropped Shock Rifle. 02877_ EXIT=FOUND Map ----- +----------------------------------------------------+ | ?????????????????????????????????????????????????? | | ?????????????????????????????????????????????????? | | ?????????????????????????????????????????????????? | | ?????????????????????????????????????????????????? | | ?????????????????????????????????????????????????? | | ?????????????????????????????????????????????????? | | ?????????????????????????????????????????????????" | | ?????????????????????????????????????????????????" | | ?????????????????????????????????????????????????? | | ?????????????????????????????????????????????????? | | ?????????????????????????????????????????????????? | | ???????????????????????????????????##########????? | | ???????????????????????????????????#! / #????? | | ???????????????????????????????????# """ #????? | | ???????????????????????????????????# """ ! ###### | | ???????????????????????????????????# """ + | | ???????????????????????????????????# ###### | | ???????????????????????????????????# """ #????? | | ??????????????????????#????????????# """ #????? | | ??????????????????????# ???????????# """ #????? | | ???????????? ???##???# ???????????# ]#????? | | ??????????? ##T ### #########+##### +######### | | ???????????k t [ | | ?????????? k | | ?????????? Y " " """ """ | | ?????????? @ "F" """ """ | | ?????????? " """ """ | | ?????????? ########### ######### """ | | ??????????????????????????#+#???##### """ """ """ | | ??????????????###?????????# ?? # """ """ | | ?????????????? ?????????# # """ """ | | ?????????????? ?????????# # | | ?????????????? ?????????# """ """ + """ """ """ | | ????????????? ?????????# """ """ # """ """ """ | | ?????????????"" #????????# """ """ # """ """ """ | | ????????????""" #????????# # | | ?????????????"" #????????# ? ! #! """ """ """ | | ????????????? #?????############## """ """ """ | | ??????????????" #?????# # """ """ """ | | ??????????????" #?????# " """"" # | | ??????????????? #?????# "" """"" # | | ??????????????? #?????# G """ # ######## | | ????????###+####+####### "" # # # | | ####????# + " !!! # # ! T # | | #????# ##+####### !!! # # # | | "" #????# # # !!! # # # | | ###### # [ # + # ! * # | | "" + # */!!# # # # | | ###### #] / ! # # # """ # | | "" #????# # # [# # """ # | +----------------------------------------------------+ Best States ------------- Heat Dissipation 48 Energy Generation 16 Energy Capacity 800 Matter Stores 300 Matter Capacity 300 Sight Range 18 Robot Scan Range 14 Terrain Scan Density 10 Evasion (%) 64 Salvage Targeting 2 Offensive Hacking 10 Defensive Hacking 10 Item Schematics ----------------- Imp. Signal Interpreter | -8/Materials | Scanalyzed Katana | -8/Materials | Scanalyzed Reaction Control System | -8/Materials | Scanalyzed Imp. Cooling System | -8/Materials | Scanalyzed Robot Schematics ------------------ None Fabricated ------------ Nothing Alien Tech Used ----------------- None Achievements -------------- None Challenges ------------ None Game ------ Seed CannonChromaticCanceller Manual? 0 Play Time 00:35:25 Cumulative 179.0 hours Start 2024.06.15 @ 17:00:59 End 2024.06.15 @ 20:52:21 Sessions 2 Manual Loads 0 Difficulty Rogue Special Mode None Game No. 354 Rogue 354 Adventurer 0 Explorer 0 Win Type - Total 0 Types 0/0/0/0/0/0/0/0/0 Lore% 48 Gallery% 66 Achievement% 46 Wizard Run 0 Options --------- Layout 0 ASCII 0 Keyboard 1 Movement Numpad Keybinds 0 Fullscreen 2 Font 18/X11 Map View 76x50 Zoom Use 0% Tactical HUD 1 Map Filters NONE Filters NONE Steam 1 RUN: 119d3503-3eda-4dac-981b-ea7ebbde7795